bitfinex/quotes_SOLUSD_20241105
["timestamp","ask_amount","ask_price","bid_price","bid_amount"]
[1730824760930,27.11435171,168.27,168.21,47.92095171]
[1730824761126,6.2527,168.35,168.21,20.8066]
[1730824761636,20.0,168.32,168.21,14.862]
[1730824761841,29.718284,168.31,168.21,14.862]
[1730824762219,27.11435171,168.3,168.24,27.11435171]
[1730824762617,27.11435171,168.29,168.23,27.11435171]
[1730824763042,29.718284,168.31,168.24,27.11435171]
[1730824763043,27.11435171,168.3,168.24,27.11435171]
[1730824763345,27.11435171,168.31,168.25,27.11435171]
[1730824763540,27.11435171,168.33,168.27,27.11435171]
[1730824763739,27.11435171,168.34,168.28,33.05675171]
[1730824764036,27.11435171,168.34,168.28,47.91285171]
[1730824764037,23.776884,168.33,168.28,47.91285171]
[1730824764340,27.11435171,168.36,168.3,27.11435171]
[1730824764635,27.11435171,168.33,168.28,20.7985]
[1730824765016,27.11435171,168.32,168.28,14.8561]
[1730824765537,27.11435171,168.33,168.28,20.7985]
[1730824766239,27.11435171,168.34,168.28,47.91285171]
[1730824766440,27.11435171,168.3,168.25,5.9433]
[1730824766633,27.11435171,168.32,168.25,33.05765171]
[1730824766826,27.11435171,168.3,168.25,5.9433]
[1730824767536,27.11435171,168.3,168.25,20.8021]
[1730824767855,15.0473,168.39,168.25,20.8021]
[1730824767856,12.194,168.4,168.29,27.11435171]
[1730824768156,33.37005171,168.4,168.34,27.11435171]
[1730824768441,27.11435171,168.41,168.35,27.11435171]
[1730824768623,27.11435171,168.4,168.34,27.11435171]
[1730824769245,27.11435171,168.41,168.35,27.11435171]
[1730824769624,27.11435171,168.42,168.36,27.11435171]
[1730824769825,27.11435171,168.39,168.32,25.941]
[1730824770133,27.11435171,168.39,168.33,27.11435171]
[1730824770318,27.11435171,168.4,168.32,40.793]
[1730824770519,27.11435171,168.36,168.32,20.793]
[1730824770842,27.11435171,168.35,168.3,5.9414]
[1730824771217,23.776884,168.36,168.3,47.91015171]
[1730824771528,50.89123571,168.36,168.3,47.91015171]
[1730824772335,50.89123571,168.36,168.3,20.7958]
[1730824772522,23.776884,168.36,168.31,27.11435171]
[1730824772845,27.11435171,168.38,168.31,27.11435171]
[1730824773039,27.11435171,168.37,168.31,27.11435171]
[1730824773218,50.89123571,168.38,168.32,27.11435171]
[1730824773412,50.89123571,168.38,168.31,27.11435171]
[1730824773631,27.11435171,168.41,168.35,27.11435171]
[1730824774330,27.11435171,168.41,168.36,20.7887]
[1730824774833,27.11435171,168.38,168.31,14.8528]
[1730824775039,27.11435171,168.4,168.33,27.11435171]
[1730824775337,27.11435171,168.4,168.31,14.8528]
[1730824775338,47.11435171,168.41,168.35,27.11435171]
[1730824775541,27.11435171,168.4,168.34,27.11435171]
[1730824775726,47.11435171,168.41,168.35,27.11435171]
[1730824775921,27.11435171,168.41,168.35,27.11435171]
[1730824776123,50.89123571,168.42,168.36,27.11435171]
[1730824776324,50.89123571,168.42,168.36,33.05365171]
[1730824776542,27.11435171,168.41,168.36,5.9393]
[1730824777248,29.714384,168.42,168.29,0.1]
[1730824777249,27.11435171,168.39,168.33,27.11435171]
[1730824777439,27.11435171,168.4,168.34,27.11435171]
[1730824777754,27.11435171,168.42,168.36,27.11435171]
[1730824777957,27.42595181,168.43,168.37,27.11435171]
[1730824778251,20.3116001,168.43,168.38,33.05315171]
[1730824778440,33.36305181,168.43,168.37,33.05345171]
[1730824780636,33.36305181,168.43,168.36,41.96265171]
[1730824781435,33.36305181,168.43,168.39,27.11435171]
[1730824781436,0.3116001,168.43,168.39,27.11435171]
[1730824781747,0.3116001,168.43,168.41,27.11435171]
[1730824781931,0.3116001,168.43,168.42,27.11435171]
[1730824782757,0.3116001,168.43,168.42,33.05185171]
[1730824785335,0.3116001,168.43,168.37,6.0341]
[1730824785539,0.3116001,168.43,168.41,27.11435171]
[1730824786438,0.3116001,168.43,168.41,33.05185171]
[1730824786955,0.3116001,168.43,168.42,27.11435171]
[1730824788153,0.3116001,168.43,168.42,47.11435171]
[1730824788757,0.3116001,168.43,168.42,53.05185171]
[1730824789461,0.3116001,168.43,168.42,76.92873571]
[1730824790048,0.3116001,168.43,168.42,77.02873571]
[1730824790969,0.3116001,168.43,168.42,49.814384]
[1730824791265,0.3116001,168.43,168.42,77.02873571]
[1730824791563,0.3116001,168.52,168.44,0.1]
[1730824791760,0.3116001,168.52,168.5,27.11435171]
[1730824793382,0.3116001,168.52,168.51,27.11435171]
[1730824794457,0.3116001,168.52,168.51,47.11435171]
[1730824794764,0.3116001,168.52,168.51,71.09123571]
[1730824795074,0.3116001,168.52,168.51,77.02553571]
[1730824796370,0.3116001,168.52,168.51,77.15102571]
[1730824797176,0.3116001,168.6,168.55,0.1]
[1730824797347,0.3116001,168.6,168.59,47.11435171]
[1730824799069,0.3116001,168.6,168.59,53.04585171]
[1730824799771,0.3116001,168.6,168.59,33.04585171]
[1730824799971,0.15472663,168.6,168.59,33.04585171]
[1730824800273,0.15472663,168.6,168.59,56.82273571]
[1730824801473,0.15472663,168.6,168.59,57.14822571]
[1730824801671,0.3116001,168.69,168.61,0.2]
[1730824801851,0.3116001,168.69,168.67,27.11435171]
[1730824802844,0.3116001,168.69,168.68,27.11435171]
[1730824805071,0.3116001,168.69,168.68,33.04265171]
[1730824805649,0.3116001,168.69,168.67,41.93615171]
[1730824805861,0.3116001,168.69,168.6,59.178184]
[1730824805862,0.3116001,168.69,168.65,33.04345171]
[1730824806176,0.3116001,168.69,168.67,27.11435171]
[1730824806471,0.3116001,168.69,168.68,27.11435171]
[1730824806850,0.3116001,168.69,168.68,33.04265171]
[1730824807051,0.3116001,168.69,168.66,14.8227]
[1730824807272,0.3116001,168.69,168.68,27.11435171]
[1730824807606,0.3116001,168.69,168.66,14.8227]
[1730824807607,0.3116001,168.69,168.67,27.11435171]
[1730824807891,0.3116001,168.69,168.68,27.11435171]
[1730824809075,0.3116001,168.69,168.68,33.04265171]
[1730824809456,0.3116001,168.69,168.67,27.11435171]
[1730824809652,0.3116001,168.69,168.66,47.86575171]
[1730824810682,0.3116001,168.69,168.64,27.11435171]
[1730824811179,6.2397001,168.69,168.63,27.11435171]
[1730824811476,27.11435171,168.68,168.62,41.94025171]
[1730824811870,27.11435171,168.66,168.62,14.8259]
[1730824812068,27.11435171,168.67,168.62,14.8259]
[1730824812270,27.11435171,168.68,168.62,14.8259]
[1730824812477,27.11435171,168.68,168.62,41.94025171]
[1730824812681,5.9287,168.67,168.62,41.94025171]
[1730824812988,27.11435171,168.68,168.62,47.87065171]
[1730824813573,27.11435171,168.66,168.61,27.11435171]
[1730824813772,27.11435171,168.66,168.61,33.04515171]
[1730824813981,27.11435171,168.65,168.59,33.04565171]
[1730824814288,27.11435171,168.65,168.59,47.87445171]
[1730824814588,29.708784,168.58,168.47,39.2442928]
[1730824814770,27.11435171,168.52,168.47,12.12994109]
[1730824814968,27.11435171,168.52,168.47,5.9356]
[1730824815489,27.11435171,168.53,168.47,5.9356]
[1730824815781,27.11435171,168.55,168.48,27.11435171]
[1730824816089,27.11435171,168.56,168.5,27.11435171]
[1730824816270,27.11435171,168.55,168.49,27.11435171]
[1730824816973,27.11435171,168.55,168.49,33.04915171]
[1730824818275,27.11435171,168.55,168.5,27.11435171]
[1730824818477,27.11435171,168.56,168.5,27.11435171]
[1730824819171,27.11435171,168.54,168.49,14.8376]
[1730824819359,27.11435171,168.53,168.49,14.8376]
[1730824820969,27.11435171,168.51,168.45,47.89105171]
[1730824821171,27.11435171,168.52,168.46,27.11435171]
[1730824821370,5.9319,168.58,168.45,20.7767]
[1730824821371,27.11435171,168.53,168.47,27.11435171]
[1730824821801,5.9319,168.58,168.45,20.7767]
[1730824821802,27.11435171,168.52,168.46,27.11435171]
[1730824822290,27.11435171,168.53,168.48,27.11435171]
[1730824822497,27.11435171,168.53,168.47,27.11435171]
[1730824822792,27.11435171,168.52,168.47,27.11435171]
[1730824822994,27.11435171,168.5,168.44,27.11435171]
[1730824823408,5.9329,168.55,168.31,0.3116001]
[1730824823409,0.1,168.38,168.31,0.3116001]
[1730824823692,20.0,168.39,168.31,0.3116001]
[1730824824276,20.0,168.38,168.31,0.3116001]
[1730824824677,27.11435171,168.34,168.31,0.3116001]
[1730824824865,27.11435171,168.35,168.31,0.3116001]
[1730824825069,20.0,168.38,168.31,0.3116001]
[1730824825070,27.11435171,168.34,168.31,0.2013513]
[1730824826167,27.11435171,168.33,168.31,0.2013513]
[1730824827299,27.11435171,168.32,168.31,0.2013513]
[1730824827586,47.11435171,168.35,168.31,0.2013513]
[1730824827769,27.11435171,168.37,168.31,27.31570301]
[1730824828170,5.9388,168.39,168.31,0.2013513]
[1730824828984,27.11435171,168.36,168.31,0.2013513]
[1730824829367,5.939,168.38,168.31,0.2013513]
[1730824829368,27.11435171,168.35,168.31,0.2013513]
[1730824829791,27.11435171,168.32,168.31,0.2013513]
[1730824830398,27.11435171,168.33,168.31,0.2013513]
[1730824830584,27.11435171,168.34,168.31,0.2013513]
[1730824830784,27.11435171,168.35,168.31,0.2013513]
[1730824830978,27.11435171,168.37,168.31,27.31570301]
[1730824831295,27.11435171,168.36,168.31,6.1426513]
[1730824831689,5.9371,168.43,168.32,27.11435171]
[1730824831880,27.11435171,168.41,168.35,27.11435171]
[1730824832078,27.11435171,168.4,168.34,27.11435171]
[1730824832479,5.9371,168.43,168.31,48.11050301]
[1730824832480,27.11435171,168.37,168.31,48.11050301]
[1730824832782,27.11435171,168.37,168.32,20.0]
[1730824833187,50.7084,168.47,168.31,48.11050301]
[1730824833188,27.11435171,168.35,168.31,15.0548513]
[1730824834674,27.11435171,168.36,168.31,20.9962513]
[1730824835295,27.11435171,168.39,168.33,27.11435171]
[1730824835498,35.8684,168.47,168.31,48.11060301]
[1730824835499,27.11435171,168.37,168.31,48.11060301]
[1730824835683,27.11435171,168.36,168.31,20.9962513]
[1730824836493,27.11435171,168.34,168.31,15.0548513]
[1730824836806,27.11435171,168.32,168.31,0.2013513]
[1730824837104,27.11435171,168.33,168.31,0.2013513]
[1730824837280,27.11435171,168.34,168.31,0.2013513]
[1730824838781,27.11435171,168.36,168.31,6.1424513]
[1730824839276,27.11435171,168.35,168.31,6.1424513]
[1730824839606,27.11435171,168.32,168.31,0.2013513]
[1730824842697,27.11435171,168.32,168.24,0.3404333]
[1730824842698,47.398284,168.18,168.02,14.8787]
[1730824842910,0.1,168.16,168.04,33.06505171]
[1730824843077,43.776884,168.17,168.02,14.8791]
[1730824843078,27.11435171,168.07,168.02,14.8791]
[1730824843281,47.11435171,168.06,167.99,5.9527]
[1730824843477,27.11435171,168.06,168.0,5.9522]
[1730824844078,70.89123571,168.06,167.98,5.9529]
[1730824844286,50.89123571,168.06,167.99,27.11435171]
[1730824845130,50.89123571,168.06,167.98,5.9529]
[1730824845312,50.89123571,168.06,167.98,33.06725171]
[1730824845606,44.24961499,168.06,167.99,44.24961499]
[1730824845788,0.1,168.11,167.97,14.8831]
[1730824845789,44.24961499,168.07,168.01,50.20151499]
[1730824845992,44.24961499,168.09,168.02,50.20111499]
[1730824846195,44.24961499,168.09,168.03,50.20061499]
[1730824846711,44.24961499,168.11,168.04,44.24961499]
[1730824846899,44.24961499,168.12,168.06,44.24961499]
[1730824847411,44.24961499,168.13,168.07,44.24961499]
[1730824848001,44.24961499,168.15,168.09,44.24961499]
[1730824848310,44.24961499,168.17,168.1,44.24961499]
[1730824848487,44.24961499,168.18,168.11,44.24961499]
[1730824848688,44.24961499,168.18,168.05,56.9271333]
[1730824848689,44.24961499,168.18,168.12,44.24961499]
[1730824849105,44.24961499,168.2,168.13,44.24961499]
[1730824849417,44.24961499,168.18,168.12,44.24961499]
[1730824850092,44.24961499,168.15,168.09,44.24961499]
[1730824850303,44.24961499,168.16,168.1,44.24961499]
[1730824850511,44.24961499,168.17,168.1,44.24961499]
[1730824851016,44.24961499,168.16,168.11,5.9484]
[1730824852114,44.24961499,168.18,168.12,44.24961499]
[1730824852636,44.24961499,168.19,168.13,44.24961499]
[1730824853117,44.24961499,168.18,168.13,5.9477]
[1730824853286,44.24961499,168.17,168.13,5.9477]
[1730824853491,44.24961499,168.14,168.09,20.0]
[1730824853719,44.24961499,168.15,168.09,64.24961499]
[1730824854097,44.24961499,168.14,168.09,20.0]
[1730824854704,44.24961499,168.15,168.09,44.24961499]
[1730824854911,44.24961499,168.14,168.08,64.24961499]
[1730824855119,44.24961499,168.13,168.08,20.0]
[1730824855316,44.24961499,168.14,168.08,64.24961499]
[1730824855526,44.24961499,168.14,168.09,65.07161499]
[1730824855701,44.24961499,168.15,168.09,65.07161499]
[1730824856024,44.24961499,168.14,168.09,20.822]
[1730824856599,44.24961499,168.13,168.09,20.822]
[1730824857120,44.24961499,168.14,168.09,20.822]
[1730824857637,44.24961499,168.15,168.09,65.07161499]
[1730824857832,44.24961499,168.16,168.1,50.19811499]
[1730824859997,44.24961499,168.15,168.1,5.9485]
[1730824860423,44.24961499,168.16,168.1,65.07011499]
[1730824861015,5.9463,168.18,168.1,14.872]
[1730824861016,44.24961499,168.13,168.1,14.872]
[1730824861507,44.24961499,168.14,168.1,14.872]
[1730824862213,44.24961499,168.16,168.11,44.24961499]
[1730824862415,44.24961499,168.22,168.15,44.24961499]
[1730824862622,4.317914,168.19,168.1,0.2]
[1730824862822,4.317914,168.19,168.12,0.1]
[1730824863126,4.317914,168.19,168.11,0.1]
[1730824863336,4.317914,168.19,168.14,44.24961499]
[1730824864229,48.56752899,168.19,168.13,44.24961499]
[1730824864545,44.24961499,168.18,168.13,14.8692]
[1730824864721,44.24961499,168.18,168.13,20.8169]
[1730824864919,44.24961499,168.17,168.13,14.8692]
[1730824865139,10.263514,168.19,168.13,14.8692]
[1730824865140,44.24961499,168.16,168.13,14.8692]
[1730824865423,44.24961499,168.15,168.11,5.9482]
[1730824865625,44.24961499,168.15,168.09,65.07111499]
[1730824865938,10.263514,168.19,168.09,14.8725]
[1730824865939,44.24961499,168.13,168.09,14.8725]
[1730824866141,44.24961499,168.12,168.07,50.19921499]
[1730824866317,44.24961499,168.14,168.09,5.9491]
[1730824866522,44.24961499,168.13,168.09,5.9491]
[1730824867344,50.98006329,168.11,168.05,27.54361259]
[1730824867554,27.20317929,168.14,168.08,27.20317929]
[1730824867935,27.20317929,168.13,168.07,27.20317929]
[1730824868128,27.20317929,168.11,168.05,33.49411259]
[1730824868525,27.20317929,168.11,168.05,48.37061259]
[1730824868827,27.20317929,168.12,168.06,27.20317929]
[1730824869743,27.20317929,168.11,168.05,27.54361259]
[1730824869945,27.20317929,168.11,168.06,20.8258]
[1730824870134,27.20317929,168.09,168.06,14.8756]
[1730824870542,27.20317929,168.1,168.05,0.3404333]
[1730824870859,27.20317929,168.09,168.05,0.3404333]
[1730824871029,27.20317929,168.07,168.05,0.3404333]
[1730824871238,27.20317929,168.06,168.05,0.3404333]
[1730824871928,56.93026329,168.06,168.05,0.3404333]
[1730824872135,76.93026329,168.06,168.05,0.3404333]
[1730824874051,70.98006329,168.06,168.05,0.3404333]
[1730824874235,71.18006329,168.06,168.05,3.33e-05]
[1730824874434,23.876884,168.04,167.96,0.3404333]
[1730824874635,27.20317929,167.99,167.96,0.3404333]
[1730824874854,27.20317929,168.02,167.96,48.38171259]
[1730824875042,27.20317929,168.03,167.97,27.20317929]
[1730824875664,5.9506,168.05,167.96,21.1785333]
[1730824875665,27.20317929,168.04,167.98,27.20317929]
[1730824875869,23.776884,168.03,167.98,27.20317929]
[1730824876029,27.20317929,168.04,167.98,27.20317929]
[1730824876235,27.20317929,168.07,168.01,27.20317929]
[1730824876450,27.20317929,168.08,168.02,27.20317929]
[1730824876652,27.20317929,168.04,167.98,27.20317929]
[1730824876859,27.20317929,168.06,167.97,20.8368]
[1730824877161,28.1279,168.1,167.97,20.8368]
[1730824877162,0.1,168.07,167.97,20.8368]
[1730824877360,27.20317929,168.03,167.97,20.8368]
[1730824877541,20.0,168.01,167.95,33.50735939]
[1730824877739,0.1,168.07,167.95,0.3500801]
[1730824877740,23.776884,167.99,167.95,0.3500801]
[1730824878461,50.98006329,167.99,167.95,0.3500801]
[1730824879462,23.776884,167.99,167.95,0.3500801]
[1730824880042,27.20317929,168.01,167.95,21.1892801]
[1730824880250,27.20317929,168.01,167.95,48.39245939]
[1730824880859,33.15517929,168.01,167.95,48.39245939]
[1730824881369,27.20317929,168.0,167.95,15.2353801]
[1730824881657,27.20317929,167.98,167.95,0.3500801]
[1730824881864,70.98006329,167.99,167.95,0.3500801]
[1730824882256,76.93276329,167.99,167.95,0.3500801]
[1730824882955,23.776884,167.99,167.95,0.3500801]
[1730824883151,27.20317929,168.03,167.97,27.20317929]
[1730824883351,5.9502,168.06,167.99,27.20317929]
[1730824883352,27.20317929,168.05,167.99,27.20317929]
[1730824883545,5.9502,168.06,168.01,27.20317929]
[1730824883746,27.20317929,168.07,168.01,27.20317929]
[1730824884345,33.15307929,168.07,168.01,27.20317929]
[1730824884542,27.20317929,168.05,168.0,5.9522]
[1730824884865,27.20317929,168.11,168.04,27.20317929]
[1730824885071,27.20317929,168.1,168.04,27.20317929]
[1730824885389,27.20317929,168.07,168.01,27.20317929]
[1730824885546,27.20317929,168.07,168.02,27.20317929]
[1730824885748,27.20317929,168.08,168.02,27.20317929]
[1730824886076,5.9483,168.12,168.03,27.20317929]
[1730824886077,27.20317929,168.09,168.03,27.20317929]
[1730824886259,27.20317929,168.1,168.04,33.15397929]
[1730824886459,33.15207929,168.1,168.04,33.15397929]
[1730824886662,27.20317929,168.13,168.07,27.20317929]
[1730824887249,27.20317929,168.14,168.08,27.20317929]
[1730824887453,27.20317929,168.1,168.04,48.03137929]
[1730824887776,27.20317929,168.12,168.06,27.20317929]
[1730824887970,27.20317929,168.13,168.07,27.20317929]
[1730824888478,27.20317929,168.12,168.07,20.824]
[1730824888650,27.20317929,168.13,168.07,48.02717929]
[1730824888850,27.20317929,168.16,168.1,27.20317929]
[1730824889050,27.20317929,168.17,168.11,27.20317929]
[1730824889365,27.20317929,168.16,168.1,27.20317929]
[1730824889565,27.20317929,168.17,168.11,27.20317929]
[1730824890182,5.9438,168.24,168.14,27.20317929]
[1730824890479,27.20317929,168.2,168.13,27.20317929]
[1730824890869,27.20317929,168.16,168.1,39.59447929]
[1730824891074,48.20667929,168.24,168.08,48.02567929]
[1730824891075,27.20317929,168.15,168.08,48.02567929]
[1730824891257,27.20317929,168.14,168.08,48.02567929]
[1730824891579,27.20317929,168.12,168.08,14.8733]
[1730824891774,27.20317929,168.13,168.08,14.8733]
[1730824891986,27.20317929,168.14,168.08,42.07647929]
[1730824892273,20.0,168.15,168.1,27.20317929]
[1730824892476,20.0,168.15,168.08,14.8733]
[1730824892477,27.20317929,168.13,168.08,14.8733]
[1730824893358,6.20419717,168.24,168.1,27.20317929]
[1730824893558,6.20419717,168.24,168.08,14.8733]
[1730824893559,27.20317929,168.2,168.14,27.20317929]
[1730824893762,27.20317929,168.19,168.13,27.20317929]
[1730824893967,27.20317929,168.18,168.12,27.20317929]
[1730824894173,27.20317929,168.17,168.11,27.20317929]
[1730824894365,27.20317929,168.17,168.11,33.15137929]
[1730824894763,27.20317929,168.15,168.09,48.02517929]
[1730824896165,27.20317929,168.13,168.07,33.15267929]
[1730824896371,27.20317929,168.14,168.08,27.20317929]
[1730824896678,5.9449,168.21,168.13,27.20317929]
[1730824896867,33.14787929,168.22,168.16,27.20317929]
[1730824897068,27.20317929,168.21,168.15,27.20317929]
[1730824897859,27.20317929,168.2,168.14,33.15047929]
[1730824898263,27.20317929,168.19,168.13,48.02027929]
[1730824898576,27.20317929,168.2,168.14,27.20317929]
[1730824900187,27.20317929,168.2,168.06,0.2]
[1730824900188,27.20317929,168.17,168.11,27.20317929]
[1730824900689,27.20317929,168.18,168.12,27.20317929]
[1730824901292,33.14947929,168.18,168.12,27.20317929]
[1730824901507,5.9463,168.18,168.13,27.20317929]
[1730824902300,20.0,168.2,168.15,27.20317929]
[1730824902497,27.20317929,168.21,168.15,27.20317929]
[1730824903072,27.20317929,168.2,168.14,27.20317929]
[1730824903272,5.9456,168.19,168.14,27.20317929]
[1730824904006,33.14877929,168.19,168.13,33.15077929]
[1730824904702,5.9456,168.19,168.14,27.20317929]
[1730824905509,5.9456,168.19,168.05,21.0931]
[1730824905510,27.20317929,168.15,168.05,21.0931]
[1730824905688,27.20317929,168.12,168.06,27.20317929]
[1730824906699,33.15137929,168.12,168.06,33.15337929]
[1730824907015,5.9482,168.12,168.06,33.15337929]
[1730824907712,5.9482,168.12,168.05,14.8758]
[1730824907713,27.20317929,168.11,168.05,20.8264]
[1730824908086,33.15137929,168.12,168.06,27.20317929]
[1730824908304,5.9482,168.12,168.07,27.20317929]
[1730824908600,27.20317929,168.14,168.08,27.20317929]
[1730824908808,5.9477,168.13,168.08,27.20317929]
[1730824909012,27.20317929,168.09,168.01,6.20490087]
[1730824909309,27.20317929,168.1,168.03,27.20317929]
[1730824909486,27.20317929,168.1,168.04,27.20317929]
[1730824909688,23.776884,168.1,168.04,27.20317929]
[1730824910210,50.98006329,168.1,168.04,27.20317929]
[1730824910510,56.92916329,168.1,168.04,27.20317929]
[1730824910812,56.92916329,168.1,168.03,33.15437929]
[1730824911105,56.92916329,168.1,168.04,27.20317929]
[1730824911284,23.776884,168.04,167.95,15.2346801]
[1730824911483,27.20317929,168.02,167.96,27.20317929]
[1730824911907,50.98006329,168.04,167.97,27.20317929]
[1730824912503,27.20317929,168.07,168.01,27.20317929]
[1730824912721,33.26677929,168.08,168.01,27.20317929]
[1730824912889,27.20317929,168.08,168.01,27.20317929]
[1730824913093,27.20317929,168.07,168.01,27.20317929]
[1730824913488,5.9505,168.06,168.01,27.20317929]
[1730824913688,27.20317929,168.08,168.02,27.20317929]
[1730824913883,5.9498,168.08,168.03,27.20317929]
[1730824914891,5.9498,168.08,167.95,0.4500801]
[1730824914892,27.20317929,168.04,167.95,0.3500801]
[1730824915089,27.20317929,168.02,167.95,27.55325939]
[1730824915512,27.20317929,168.03,167.97,27.20317929]
[1730824916004,33.15447929,168.03,167.96,27.20317929]
[1730824917117,33.15447929,168.03,167.96,33.15657929]
[1730824917615,27.20317929,168.01,167.96,5.9534]
[1730824917784,5.9513,168.03,167.96,5.9534]
[1730824917785,27.20317929,168.02,167.96,33.15657929]
[1730824918188,27.20317929,168.03,167.97,27.20317929]
[1730824918614,33.15417929,168.04,167.98,27.20317929]
[1730824918917,27.20317929,168.03,167.97,27.20317929]
[1730824919415,27.20317929,168.03,167.97,33.15627929]
[1730824919920,27.20317929,167.99,167.95,0.3500801]
[1730824920313,23.776884,168.02,167.95,0.3500801]
[1730824920314,27.20317929,168.0,167.95,0.3500801]
[1730824920892,27.20317929,167.97,167.95,0.3500801]
[1730824921624,33.15687929,167.97,167.95,0.3500801]
[1730824922321,5.9537,167.97,167.95,0.3500801]
[1730824922629,70.98006329,167.97,167.95,0.3500801]
[1730824922914,27.20317929,167.97,167.95,0.3500801]
[1730824923428,27.20317929,167.96,167.95,0.3500801]
[1730824923605,0.1,167.94,167.86,0.3580534]
[1730824923798,23.776884,167.92,167.86,0.3580534]
[1730824924003,27.20317929,167.87,167.86,0.3580534]
[1730824924618,27.20317929,167.88,167.86,0.3580534]
[1730824924796,27.20317929,167.87,167.86,0.3580534]
[1730824925217,50.98006329,167.87,167.86,0.3580534]
[1730824925726,27.20317929,167.88,167.86,0.3580534]
[1730824925907,27.30317929,167.92,167.86,0.3580534]
[1730824925908,27.20317929,167.87,167.86,0.3580534]
[1730824926113,70.98006329,167.87,167.86,0.3580534]
[1730824927621,76.93696329,167.87,167.86,0.3580534]
[1730824928415,84.9856,167.95,167.86,0.3580534]
[1730824928593,27.20317929,167.87,167.86,0.3580534]
[1730824929596,33.16007929,167.87,167.86,0.3580534]
[1730824929798,23.776884,167.87,167.86,0.3580534]
[1730824930120,141.18006329,167.87,167.86,0.3580534]
[1730824930302,141.18006329,167.87,167.76,0.3580534]
[1730824930303,20.0,167.82,167.76,0.3580534]
[1730824930501,27.20317929,167.78,167.76,0.3580534]
[1730824930693,27.20317929,167.79,167.76,0.3580534]
[1730824930891,23.776884,167.78,167.76,0.3580534]
[1730824931118,50.98006329,167.78,167.76,0.3580534]
[1730824931338,70.98006329,167.77,167.76,0.3580534]
[1730824931498,104.26574258,167.77,167.76,0.3580534]
[1730824931697,110.22624258,167.77,167.76,0.3580534]
[1730824931908,83.02306329,167.77,167.76,0.3580534]
[1730824932124,76.94056329,167.77,167.76,0.3580534]
[1730824933024,50.98006329,167.77,167.76,0.3580534]
[1730824934205,70.98006329,167.77,167.76,0.3580534]
[1730824934619,76.1659,167.86,167.76,0.3580534]
[1730824934828,27.20317929,167.8,167.76,21.2210534]
[1730824935025,33.16117929,167.84,167.76,21.2210534]
[1730824935026,27.20317929,167.78,167.76,0.3580534]
[1730824935249,27.20317929,167.77,167.76,0.3580534]
[1730824935524,33.16117929,167.84,167.76,0.3580534]
[1730824935525,27.20317929,167.79,167.76,0.3580534]
[1730824935728,27.20317929,167.78,167.76,0.3580534]
[1730824935908,27.20317929,167.77,167.76,0.3580534]
[1730824936107,70.1,167.82,167.76,0.3580534]
[1730824936108,27.20317929,167.78,167.76,0.3580534]
[1730824936629,27.20317929,167.77,167.76,0.3580534]
[1730824936847,47.20317929,167.77,167.76,0.3580534]
[1730824937129,47.20317929,167.77,167.66,0.71177568]
[1730824937130,47.20317929,167.77,167.69,0.3094479]
[1730824937131,120.414684,167.76,167.69,0.3094479]
[1730824937325,27.20317929,167.7,167.69,0.3094479]
[1730824937527,50.98006329,167.7,167.69,0.6703716]
[1730824938332,70.98006329,167.7,167.69,0.6703716]
[1730824942749,50.98006329,167.7,167.69,0.6703716]
[1730824944239,27.20317929,167.71,167.69,0.6703716]
[1730824944451,27.20317929,167.7,167.69,0.6703716]
[1730824944948,27.20317929,167.71,167.69,0.6703716]
[1730824945156,27.20317929,167.73,167.69,0.6703716]
[1730824945529,27.20317929,167.72,167.69,0.6703716]
[1730824945951,27.20317929,167.73,167.69,0.6703716]
[1730824946440,23.776884,167.72,167.69,0.6703716]
[1730824946755,70.2,167.79,167.69,0.6703716]
[1730824946756,11.29551431,167.87,167.72,20.0]
[1730824946959,27.20317929,167.84,167.77,27.20317929]
[1730824947558,27.20317929,167.83,167.76,27.56410299]
[1730824948124,33.16177929,167.83,167.76,27.56410299]
[1730824948347,27.20317929,167.83,167.76,27.56410299]
[1730824948544,27.20317929,167.85,167.79,27.20317929]
[1730824948755,27.20317929,167.86,167.79,27.20317929]
[1730824949144,27.20317929,167.85,167.78,27.20317929]
[1730824949449,27.20317929,167.85,167.79,27.20317929]
[1730824949651,27.20317929,167.86,167.8,27.20317929]
[1730824949957,27.20317929,167.86,167.79,27.20317929]
[1730824950142,76.5161,167.89,167.8,27.20317929]
[1730824950143,27.20317929,167.87,167.8,27.20317929]
[1730824950655,23.776884,167.85,167.8,27.20317929]
[1730824951042,27.20317929,167.86,167.8,27.20317929]
[1730824951439,27.20317929,167.86,167.79,27.20317929]
[1730824951828,27.20317929,167.85,167.79,48.06237929]
[1730824952232,23.776884,167.84,167.79,48.06237929]
[1730824952433,27.20317929,167.81,167.77,0.3609237]
[1730824952636,50.98006329,167.8,167.77,0.3609237]
[1730824954163,27.20317929,167.79,167.77,0.3609237]
[1730824954335,50.98006329,167.78,167.77,0.3609237]
[1730824954658,23.776884,167.78,167.77,0.3609237]